bitfinex-derivatives/quotes_BTCF0:USTF0_20250209
["timestamp","ask_amount","ask_price","bid_price","bid_amount"]
[1739124065331,0.2099613,96148.0,96147.0,0.00015601]
[1739124065832,0.2119613,96148.0,96147.0,0.00015601]
[1739124067931,0.5727613,96148.0,96147.0,0.00015601]
[1739124071730,0.62333594,96148.0,96147.0,0.00015601]
[1739124074234,0.41537464,96148.0,96147.0,0.20811941]
[1739124074627,0.05457464,96148.0,96147.0,0.20811941]
[1739124075235,0.004,96148.0,96147.0,0.20811941]
[1739124094340,0.2119613,96148.0,96147.0,0.00015601]
[1739124097959,0.2625351,96148.0,96147.0,0.00015601]
[1739124101859,0.2119613,96148.0,96147.0,0.00015601]
[1739124105562,0.33039051,96148.0,96147.0,0.00015601]
[1739124109761,0.26253576,96148.0,96147.0,0.00015601]
[1739124114076,0.26253576,96148.0,96147.0,1e-08]
[1739124116262,0.2079808,96139.0,96138.0,0.2079818]
[1739124117471,0.2079808,96139.0,96138.0,0.2089818]
[1739124117972,0.19966099,96139.0,96138.0,0.2089818]
[1739124118360,0.19966099,96139.0,96138.0,0.2109818]
[1739124119073,0.2079713,96144.0,96139.0,0.2079799]
[1739124119267,0.3779451,96148.0,96138.0,0.003]
[1739124119573,0.3779451,96148.0,96147.0,0.2079635]
[1739124120471,0.5859064,96148.0,96147.0,0.2079635]
[1739124120668,0.3083051,96148.0,96147.0,0.2079635]
[1739124121174,0.27744193,96153.0,96143.0,0.0963]
[1739124121470,0.27744193,96153.0,96152.0,0.2079526]
[1739124122861,0.28244193,96153.0,96152.0,0.2079526]
[1739124123266,0.28644193,96153.0,96152.0,0.2079526]
[1739124125570,0.009,96153.0,96152.0,0.2079526]
[1739124129773,0.009,96153.0,96143.0,0.0963]
[1739124129975,0.009,96153.0,96149.0,0.207959]
[1739124131075,0.004,96153.0,96149.0,0.207959]
[1739124131280,0.009,96153.0,96149.0,0.207959]
[1739124131879,0.004,96153.0,96149.0,0.207959]
[1739124132187,0.007,96153.0,96149.0,0.207959]
[1739124132486,0.007,96153.0,96150.0,0.2079568]
[1739124132982,0.3678,96153.0,96150.0,0.2079568]
[1739124136881,0.3678,96153.0,96151.0,0.2079548]
[1739124137980,0.3628,96153.0,96151.0,0.2079548]
[1739124138175,0.3678,96153.0,96151.0,0.2079548]
[1739124138385,0.3658,96153.0,96151.0,0.2079548]
[1739124138588,0.3678,96153.0,96151.0,0.2079548]
[1739124138978,0.3678,96153.0,96152.0,0.2079527]
[1739124139178,0.007,96153.0,96152.0,0.2079527]
[1739124141889,0.16310916,96153.0,96152.0,0.2079527]
[1739124149197,0.007,96153.0,96152.0,0.2079527]
[1739124156002,0.16334166,96153.0,96152.0,0.2079527]
[1739124159007,0.16334166,96153.0,96152.0,0.22029683]
[1739124162915,0.05757044,96153.0,96152.0,0.22029683]
[1739124163709,0.05757044,96153.0,96152.0,0.2079527]
[1739124166213,0.007,96153.0,96152.0,0.2079527]
[1739124168823,0.28550951,96153.0,96152.0,0.2079527]
[1739124170821,0.28550951,96153.0,96152.0,0.5687527]
[1739124171123,0.24793646,96161.0,96160.0,0.2079354]
[1739124171325,0.24793646,96161.0,96160.0,0.5687354]
[1739124173230,0.24893646,96161.0,96160.0,0.5697354]
[1739124176428,0.001,96161.0,96160.0,0.58226915]
[1739124182931,0.2078901,96181.0,96165.0,0.2079246]
[1739124184032,0.2078901,96181.0,96165.0,0.2119246]
[1739124184235,0.2078965,96179.0,96165.0,0.2119246]
[1739124184527,0.2079038,96175.0,96165.0,0.2119246]
[1739124184727,0.0357,96174.0,96165.0,0.2169246]
[1739124187130,0.3608,96173.0,96165.0,0.2169246]
[1739124188832,0.0357,96174.0,96165.0,0.2169246]
[1739124190027,0.0357,96174.0,96165.0,0.5777246]
[1739124194833,0.03425601,96174.0,96172.0,0.2079079]
[1739124195441,0.03425601,96174.0,96173.0,0.2079074]
[1739124196743,0.03425601,96174.0,96173.0,0.2089074]
[1739124197544,0.03425601,96174.0,96173.0,0.2099074]
[1739124202649,0.2079291,96163.0,96162.0,0.18695514]
[1739124202940,0.5687291,96163.0,96162.0,0.18695514]
[1739124204242,0.5687291,96163.0,96162.0,0.19195514]
[1739124204746,0.5687291,96163.0,96162.0,0.19795514]
[1739124206946,0.7004949,96163.0,96162.0,0.011]
[1739124207343,0.7680949,96163.0,96162.0,0.011]
[1739124210945,0.5689658,96163.0,96151.0,0.00015601]
[1739124211253,0.5689658,96163.0,96151.0,0.20811011]
[1739124211254,0.207953,96152.0,96151.0,0.20811011]
[1739124212352,0.207953,96152.0,96151.0,0.21311011]
[1739124213354,0.207953,96152.0,96151.0,0.20811011]
[1739124213541,0.207953,96152.0,96151.0,0.21711011]
[1739124213945,0.207953,96152.0,96151.0,0.22311011]
[1739124214141,0.207953,96152.0,96151.0,0.01515601]
[1739124214646,0.208953,96152.0,96151.0,0.01815601]
[1739124220954,0.200153,96152.0,96151.0,0.01815601]
[1739124231563,0.226153,96152.0,96151.0,0.01815601]
[1739124232862,0.27672334,96152.0,96151.0,0.01815601]
[1739124236366,0.226153,96152.0,96151.0,0.01815601]
[1739124237060,0.226153,96152.0,96151.0,0.22611121]
[1739124237768,0.226153,96152.0,96151.0,0.01815601]
[1739124239666,0.217353,96152.0,96151.0,0.01815601]
[1739124240072,0.027,96152.0,96151.0,0.01815601]
[1739124240273,0.027,96152.0,96151.0,0.22611121]
[1739124243079,0.07757205,96152.0,96151.0,0.22611121]
[1739124244378,0.07757205,96152.0,96151.0,0.58691121]
[1739124246673,0.18659064,96156.0,96155.0,0.2079465]
[1739124246877,0.18653528,96160.0,96159.0,0.2079379]
[1739124247075,0.21683783,96177.0,96175.0,0.2079033]
[1739124247279,0.21683783,96177.0,96176.0,0.4286]
[1739124248682,0.21783783,96177.0,96176.0,0.4286]
[1739124249574,0.21883783,96177.0,96176.0,0.4286]
[1739124250581,0.002,96177.0,96176.0,0.4286]
[1739124252889,0.002,96177.0,96176.0,0.0678]
[1739124255480,0.002,96177.0,96176.0,0.08001648]
[1739124257884,0.002,96177.0,96176.0,0.28791758]
[1739124259192,0.0323,96196.0,96190.0,0.2078709]
[1739124260488,0.0323,96196.0,96195.0,0.2078601]
[1739124261793,0.0423,96196.0,96195.0,0.2098601]
[1739124263391,0.09284914,96196.0,96195.0,0.2098601]
[1739124265889,0.09548914,96196.0,96195.0,0.2098601]
[1739124266085,0.04494,96196.0,96195.0,0.2098601]
[1739124270884,0.04454,96196.0,96195.0,0.2098601]
[1739124283609,0.17635397,96196.0,96195.0,0.2098601]
[1739124287601,0.17635397,96196.0,96195.0,0.002]
[1739124288008,0.20935397,96196.0,96195.0,0.002]
[1739124288903,0.41721217,96196.0,96195.0,0.002]
[1739124291205,0.33594459,96196.0,96195.0,0.002]
[1739124295101,0.33594459,96196.0,96181.0,0.00015601]
[1739124295102,0.12808639,96196.0,96181.0,0.00015601]
[1739124295301,0.5686887,96182.0,96181.0,0.00015601]
[1739124296313,0.5686887,96182.0,96181.0,0.00115601]
[1739124297613,0.5686887,96182.0,96181.0,0.00215601]
[1739124297925,0.5686887,96182.0,96181.0,0.00115601]
[1739124298119,0.5743287,96182.0,96181.0,0.00015601]
[1739124298308,0.5773287,96182.0,96181.0,0.00015601]
[1739124301016,0.81034628,96182.0,96181.0,0.00015601]
[1739124303128,0.60245758,96182.0,96164.0,0.03512]
[1739124303325,0.60245758,96182.0,96169.0,0.2079126]
[1739124303326,0.5687187,96170.0,96169.0,0.2079126]
[1739124305019,0.5687187,96170.0,96169.0,0.2099126]
[1739124305718,0.5687187,96170.0,96169.0,0.2129126]
[1739124306623,0.5687187,96170.0,96169.0,0.005]
[1739124307315,0.5599187,96170.0,96169.0,0.005]
[1739124309326,0.3608,96170.0,96169.0,0.005]
[1739124312625,0.43024,96170.0,96169.0,0.005]
[1739124316330,0.6381546,96170.0,96169.0,0.005]
[1739124318730,0.78090363,96170.0,96169.0,0.005]
[1739124321925,0.77920363,96170.0,96169.0,0.005]
[1739124328735,0.77920363,96170.0,96160.0,0.00015601]
[1739124328736,0.2079341,96161.0,96160.0,0.00015601]
[1739124328939,0.5687341,96161.0,96160.0,0.00015601]
[1739124330042,0.5687341,96161.0,96160.0,0.00715601]
[1739124330242,0.5687341,96161.0,96160.0,0.01215601]
[1739124333441,0.5713641,96161.0,96160.0,0.01215601]
[1739124333944,0.2079795,96140.0,96139.0,0.18747514]
[1739124334131,0.5687795,96140.0,96139.0,0.18695514]
[1739124336141,0.5687795,96140.0,96139.0,0.18795514]
[1739124339041,0.71739071,96140.0,96139.0,0.001]
[1739124339642,0.71739071,96140.0,96130.0,0.20815641]
[1739124339643,0.2079933,96134.0,96130.0,0.20815641]
[1739124339944,0.0366,96133.0,96130.0,0.20815641]
[1739124340345,0.2445963,96133.0,96130.0,0.20815641]
[1739124340641,0.2351963,96133.0,96130.0,0.20815641]
[1739124340846,0.2351963,96133.0,96130.0,0.21215641]
[1739124342134,0.2351963,96133.0,96131.0,0.2079984]
[1739124343346,0.2351963,96133.0,96131.0,0.2119984]
[1739124343546,0.2351963,96133.0,96131.0,0.2149984]
[1739124344541,0.2351963,96133.0,96131.0,0.007]
[1739124344837,0.3608,96132.0,96131.0,0.007]
[1739124345352,0.208018,96123.0,96119.0,0.2080242]
[1739124345547,0.3608,96120.0,96119.0,0.2080242]
[1739124345852,0.2080249,96119.0,96117.0,0.0332]
[1739124346943,0.2080249,96119.0,96117.0,0.0362]
[1739124347346,0.2080249,96119.0,96117.0,0.0382]
[1739124349446,0.2100249,96119.0,96117.0,0.0432]
[1739124351852,0.2100249,96119.0,96117.0,0.2512273]
[1739124353853,0.2100249,96119.0,96117.0,0.0432]
[1739124354152,0.2100249,96119.0,96118.0,0.208027]
[1739124355546,0.2100249,96119.0,96118.0,0.215027]
[1739124355752,0.22165448,96119.0,96118.0,0.215027]
[1739124356153,0.22065448,96119.0,96118.0,0.215027]
[1739124356349,0.22165448,96119.0,96118.0,0.222027]
[1739124358751,0.22165448,96119.0,96118.0,0.014]
[1739124361755,0.2080458,96110.0,96108.0,0.00015601]
[1739124362059,0.46044,96109.0,96108.0,0.00015601]
[1739124362660,0.46306,96109.0,96108.0,0.00015601]
[1739124363354,0.46406,96109.0,96108.0,0.00015601]
[1739124364555,0.45456,96109.0,96108.0,0.00015601]
[1739124364755,0.45656,96109.0,96108.0,0.00015601]
[1739124368252,0.46811936,96109.0,96108.0,0.00015601]
[1739124368453,0.44741936,96109.0,96108.0,0.00015601]
[1739124369756,0.43586,96109.0,96108.0,0.00015601]
[1739124370062,0.43586,96109.0,96108.0,0.03055601]
[1739124373163,0.43586,96109.0,96108.0,0.00015601]
[1739124374062,0.6439064,96109.0,96108.0,0.00015601]
[1739124375460,0.43586,96109.0,96108.0,0.00015601]
[1739124376866,0.48645709,96109.0,96108.0,0.00015601]
[1739124378671,0.51675709,96109.0,96108.0,0.00015601]
[1739124380674,0.46616,96109.0,96108.0,0.00015601]
[1739124384473,0.45676,96109.0,96108.0,0.00015601]
[1739124385375,0.45676,96109.0,96108.0,0.20820461]
[1739124386162,0.6648065,96109.0,96108.0,0.20820461]
[1739124386369,0.38732,96109.0,96108.0,0.20820461]
[1739124386577,0.35702,96109.0,96108.0,0.20820461]
[1739124387477,0.40761684,96109.0,96108.0,0.20820461]
[1739124388875,0.18575789,96110.0,96108.0,0.20820461]
[1739124388876,0.14217473,96110.0,96108.0,0.00015601]
[1739124389081,0.3608,96129.0,96123.0,0.2080162]
[1739124390267,0.031,96136.0,96123.0,0.2080162]
[1739124390472,0.21783783,96124.0,96123.0,0.2130162]
[1739124390983,1e-08,96128.0,96123.0,0.005]
[1739124391173,1e-08,96128.0,96127.0,0.5688076]
[1739124392479,0.00100001,96128.0,96127.0,0.5728076]
[1739124393670,0.00100001,96128.0,96127.0,0.5768076]
[1739124394585,0.00156091,96139.0,96137.0,0.207986]
[1739124395485,0.00156091,96139.0,96138.0,0.3608]
[1739124395884,0.00015601,96148.0,96138.0,0.3608]
[1739124395885,0.00015601,96148.0,96147.0,0.2079644]
[1739124396378,0.00015601,96148.0,96147.0,0.5687644]
[1739124397785,0.0694,96161.0,96149.0,0.0519897]
[1739124397990,0.0694,96161.0,96160.0,0.2079363]
[1739124398281,0.0332,96162.0,96160.0,0.2079363]
[1739124399391,0.009,96161.0,96160.0,0.2079363]
[1739124399786,0.009,96161.0,96160.0,0.2089363]
[1739124401479,0.018,96161.0,96160.0,0.2089363]
[1739124405797,0.00015601,96171.0,96170.0,0.2079147]
[1739124405983,0.00015601,96171.0,96170.0,0.5687147]
[1739124406984,0.00715601,96171.0,96170.0,0.5687147]
[1739124407583,0.00315601,96171.0,96170.0,0.5687147]
[1739124408494,0.00015601,96171.0,96170.0,0.5687147]
[1739124413287,0.00015601,96171.0,96170.0,0.2079147]
[1739124422699,0.00015601,96171.0,96170.0,0.21941793]
[1739124423095,0.00156043,96178.0,96177.0,0.2078996]
[1739124423292,0.00156043,96178.0,96177.0,0.5686996]
[1739124424391,0.032,96185.0,96184.0,0.2078845]
[1739124426195,0.038,96185.0,96184.0,0.2088845]
[1739124428998,0.043,96185.0,96184.0,0.2088845]
[1739124432202,0.043,96185.0,96184.0,0.22000802]
[1739124434409,0.011,96185.0,96184.0,0.22000802]
[1739124442910,0.06154956,96185.0,96184.0,0.22000802]
[1739124445627,0.06154956,96185.0,96184.0,0.58080802]
[1739124446417,0.011,96185.0,96184.0,0.58080802]
[1739124459328,0.011,96185.0,96184.0,0.2088845]
[1739124459531,0.2189015,96185.0,96183.0,0.13705514]
[1739124459728,0.0303,96184.0,96183.0,0.13705514]
[1739124460034,0.2079145,96179.0,96178.0,0.24942385]
[1739124460332,0.5687145,96179.0,96178.0,0.24942385]
[1739124461532,0.5717145,96179.0,96178.0,0.24942385]
[1739124462625,0.5747145,96179.0,96178.0,0.24942385]
[1739124463438,0.5747145,96179.0,96175.0,0.00015601]
[1739124463439,0.207921,96176.0,96175.0,0.00015601]
[1739124464234,0.568721,96176.0,96175.0,1e-08]
[1739124464733,0.570721,96176.0,96175.0,1e-08]
[1739124465638,0.572721,96176.0,96175.0,1e-08]
[1739124467229,0.70801019,96176.0,96175.0,1e-08]
[1739124469031,0.82721019,96176.0,96175.0,1e-08]
[1739124470340,0.691921,96176.0,96175.0,1e-08]
[1739124484945,0.82847769,96176.0,96175.0,1e-08]
[1739124486953,1.18927769,96176.0,96175.0,1e-08]
[1739124488552,1.28870864,96176.0,96175.0,1e-08]
[1739124492350,1.18927769,96176.0,96175.0,1e-08]
[1739124494655,0.2079642,96156.0,96155.0,0.0313]
[1739124494845,0.6381642,96156.0,96155.0,0.0313]
[1739124495556,0.6381642,96156.0,96155.0,0.2392664]
[1739124496553,0.6391642,96156.0,96155.0,0.2472664]
[1739124496743,0.6391642,96156.0,96155.0,0.2532664]
[1739124498548,0.77572089,96156.0,96155.0,0.2532664]
[1739124498949,0.13755669,96156.0,96155.0,0.2532664]
[1739124499951,0.13755669,96156.0,96155.0,0.5532664]
[1739124500158,0.21730403,96162.0,96161.0,0.2079534]
[1739124500353,0.00015601,96165.0,96164.0,0.2079469]
[1739124500658,0.24793646,96168.0,96167.0,0.2079404]
[1739124501854,0.3608,96173.0,96161.0,0.005]
[1739124502052,0.3608,96173.0,96172.0,0.2079296]
[1739124503061,0.3608,96180.0,96178.0,0.2079167]
[1739124504458,0.00456017,96179.0,96178.0,0.2079167]
[1739124505159,0.00756017,96179.0,96178.0,0.2079167]
[1739124506254,0.006,96179.0,96178.0,0.2079167]
[1739124509554,0.006,96179.0,96178.0,0.57967398]
[1739124512054,0.0307,96199.0,96178.0,0.37175728]
[1739124512261,0.0307,96199.0,96195.0,0.2078799]
[1739124513062,0.2078745,96198.0,96195.0,0.2078799]
[1739124513265,0.3788,96196.0,96195.0,0.2078799]
[1739124514853,0.3768,96196.0,96195.0,0.2088799]
[1739124516466,0.016,96196.0,96195.0,0.2088799]
[1739124516668,0.3768,96196.0,96195.0,0.2098799]
[1739124518662,0.016,96196.0,96195.0,0.2098799]
[1739124518869,0.3768,96196.0,96195.0,0.2098799]
[1739124521260,0.5846778,96196.0,96195.0,0.2098799]
[1739124522268,0.3768,96196.0,96195.0,0.2098799]
[1739124530764,0.49833054,96196.0,96195.0,0.2098799]
[1739124536780,0.13753054,96196.0,96195.0,0.2098799]
[1739124537570,0.34540834,96196.0,96195.0,0.002]
[1739124537874,0.34540834,96196.0,96187.0,0.2078966]
[1739124537875,0.2078819,96195.0,96187.0,0.2078966]
[1739124538080,0.3608,96188.0,96187.0,0.2078966]
[1739124539186,0.3608,96188.0,96187.0,0.2088966]
[1739124539579,0.5686966,96188.0,96181.0,0.2079088]
[1739124539786,0.2078994,96186.0,96182.0,0.2079064]
[1739124540478,0.3678,96188.0,96175.0,0.24942385]
[1739124540677,0.3608,96180.0,96175.0,0.24942385]
[1739124540989,0.0326,96179.0,96175.0,0.24942385]
[1739124541189,0.06932,96178.0,96175.0,0.24942385]
[1739124542293,0.07132,96178.0,96175.0,0.24942385]
[1739124542689,0.07132,96178.0,96174.0,0.2079232]
[1739124542997,0.0317,96177.0,96174.0,0.2079232]
[1739124544395,0.0317,96177.0,96171.0,0.3608]
[1739124544582,0.0337,96177.0,96175.0,0.2079225]
[1739124546388,0.0357,96177.0,96175.0,0.2079225]
[1739124547899,0.568721,96176.0,96175.0,0.2079225]
[1739124548197,0.3608,96176.0,96175.0,0.2079225]
[1739124548590,0.3608,96176.0,96166.0,0.00155968]
[1739124548791,0.2079404,96167.0,96166.0,0.00155968]
[1739124548986,0.5687404,96167.0,96166.0,0.00155968]
[1739124549999,0.5687404,96167.0,96166.0,0.00455968]
[1739124550799,0.5687404,96167.0,96166.0,0.00655968]
[1739124552895,0.3608,96167.0,96166.0,0.21450228]
[1739124554301,0.5687404,96167.0,96166.0,0.21450228]
[1739124555601,0.61930742,96167.0,96166.0,0.21450228]
[1739124558903,0.41136702,96167.0,96166.0,0.21450228]
[1739124559498,0.05056702,96167.0,96166.0,0.21450228]
[1739124559894,0.18676853,96171.0,96166.0,0.36735968]
[1739124560100,0.18676853,96171.0,96170.0,0.207934]
[1739124560304,0.07256994,96171.0,96170.0,0.207934]
[1739124561009,0.07256994,96171.0,96170.0,0.507934]
[1739124561401,0.07256994,96171.0,96170.0,0.207934]
[1739124562105,0.07256994,96171.0,96170.0,0.208934]
[1739124562709,0.00015601,96176.0,96170.0,0.001]
[1739124562907,0.00015601,96176.0,96175.0,0.2079231]
[1739124564305,0.00115601,96176.0,96175.0,0.2079231]
[1739124564704,0.00315601,96176.0,96175.0,0.2079231]
[1739124574912,0.00315601,96176.0,96175.0,0.20934466]
[1739124575515,0.00315601,96176.0,96175.0,0.21051007]
[1739124577020,0.00315601,96176.0,96175.0,0.21069954]
[1739124582316,0.03425601,96176.0,96175.0,0.21069954]
[1739124582516,0.24217701,96176.0,96175.0,0.00277644]
[1739124583120,0.2079404,96167.0,96166.0,0.00155968]
[1739124583327,0.5687404,96167.0,96166.0,0.00155968]
[1739124584123,0.3608,96167.0,96157.0,0.00015601]
[1739124584324,0.5687599,96158.0,96157.0,0.00015601]
[1739124585624,0.5687599,96158.0,96157.0,0.00515601]
[1739124586222,0.5747599,96158.0,96157.0,0.00115601]
[1739124586422,0.5747599,96158.0,96157.0,0.00415601]
[1739124587027,0.5747599,96158.0,96157.0,0.00115601]
[1739124587330,0.5827599,96158.0,96157.0,0.00215601]
[1739124589438,0.63333962,96158.0,96157.0,0.00215601]
[1739124592729,0.5827599,96158.0,96157.0,0.00215601]
[1739124598225,0.6520799,96158.0,96157.0,0.00215601]
[1739124600324,0.6520799,96158.0,96157.0,0.21011801]
[1739124603829,0.6520799,96158.0,96157.0,0.00215601]
[1739124604337,0.6520799,96158.0,96145.0,0.2079865]
[1739124604338,0.207993,96146.0,96145.0,0.2079865]
[1739124604548,0.568793,96146.0,96145.0,0.2079865]
[1739124606027,0.572793,96146.0,96145.0,0.2079865]
[1739124607245,0.2080053,96137.0,96136.0,0.00015601]
[1739124608042,0.5688053,96137.0,96136.0,0.00015601]
[1739124608937,0.5688053,96137.0,96136.0,0.00215601]
[1739124609135,0.5688053,96137.0,96136.0,0.00315601]
[1739124609343,0.3608,96137.0,96136.0,0.00315601]
[1739124609537,0.3608,96137.0,96136.0,0.21116351]
[1739124621546,0.3608,96141.0,96137.0,0.2080053]
[1739124621745,0.3608,96141.0,96140.0,0.2079988]
[1739124623255,0.06932,96143.0,96136.0,0.00015601]
[1739124623444,0.06932,96143.0,96142.0,0.2079945]
[1739124623649,0.43012,96143.0,96142.0,0.2079945]
[1739124625043,0.43112,96143.0,96142.0,0.2079945]
[1739124625650,0.43212,96143.0,96142.0,0.2079945]
[1739124629848,0.07132,96143.0,96142.0,0.2079945]
[1739124630158,0.002,96143.0,96142.0,0.2079945]
[1739124634553,0.3608,96152.0,96151.0,0.207975]
[1739124635351,0.18669604,96155.0,96154.0,0.2079685]
[1739124635864,0.00015601,96155.0,96154.0,0.2079685]
[1739124637650,0.00415601,96155.0,96154.0,0.2079685]
[1739124638356,0.00315601,96155.0,96154.0,0.2079685]
[1739124638556,0.00515601,96155.0,96154.0,0.2079685]
[1739124638951,0.00315601,96155.0,96154.0,0.2079685]
[1739124639156,0.00315601,96155.0,96154.0,0.21902016]
[1739124639157,0.00115601,96155.0,96154.0,0.21902016]
[1739124640653,0.00015601,96155.0,96154.0,0.21902016]
[1739124640858,0.00115601,96155.0,96154.0,0.21902016]
[1739124644760,0.00115601,96155.0,96154.0,0.2079685]
[1739124646873,0.2079732,96152.0,96148.0,0.2079798]
[1739124647160,0.2079826,96148.0,96145.0,0.2079875]
[1739124647563,0.2079887,96145.0,96136.0,0.36095601]
[1739124647762,0.03,96144.0,96143.0,0.2079923]
[1739124649259,0.0625,96144.0,96136.0,0.00415601]
[1739124649465,0.0625,96144.0,96137.0,0.2080036]
[1739124649660,0.3608,96141.0,96137.0,0.2080036]
[1739124649857,0.0328,96140.0,96137.0,0.2080036]
[1739124651267,0.0328,96140.0,96137.0,0.2090036]
[1739124652364,0.0328,96140.0,96137.0,0.2100036]
[1739124654274,0.0328,96140.0,96138.0,0.2080027]
[1739124655466,0.0328,96140.0,96138.0,0.2090027]
[1739124656569,0.36152,96141.0,96140.0,0.2079988]
[1739124656773,0.3608,96141.0,96140.0,0.2079988]
[1739124658165,0.0615,96144.0,96136.0,0.00015601]
[1739124658166,0.0615,96144.0,96143.0,0.2079923]
[1739124659761,0.0635,96144.0,96143.0,0.2079923]
[1739124660370,0.0635,96144.0,96136.0,0.00015601]
[1739124660575,0.0321,96143.0,96139.0,0.2080004]
[1739124661169,0.3608,96140.0,96136.0,0.00015601]
[1739124662474,0.3608,96140.0,96136.0,0.00115601]
[1739124663579,0.3608,96140.0,96136.0,0.00215601]
[1739124667977,0.2080053,96137.0,96136.0,0.00215601]
[1739124669481,0.3608,96140.0,96123.0,0.2080342]
[1739124669784,0.3608,96124.0,96110.0,0.18698422]
[1739124669978,0.3608,96111.0,96110.0,0.18698422]
[1739124670181,0.5688616,96111.0,96110.0,0.18698422]
[1739124670686,0.5688616,96111.0,96109.0,0.20962543]
[1739124670878,0.3608,96111.0,96109.0,0.20962543]
[1739124672082,0.3618,96111.0,96109.0,0.20962543]
[1739124672391,0.3628,96111.0,96109.0,0.20962543]
[1739124677380,0.3628,96111.0,96109.0,0.00156043]
[1739124677582,0.3628,96111.0,96110.0,0.2080637]
[1739124679784,0.002,96111.0,96110.0,0.2080637]
[1739124680187,0.3628,96111.0,96110.0,0.2080637]
[1739124680389,0.002,96111.0,96110.0,0.2080637]
[1739124680589,0.3628,96111.0,96110.0,0.2080637]
[1739124686486,0.3628,96111.0,96110.0,0.21892874]
[1739124687097,0.3628,96111.0,96110.0,0.2080637]
[1739124688694,0.002,96111.0,96110.0,0.2080637]
[1739124711302,0.06932,96135.0,96109.0,0.36236043]
[1739124711518,0.18810099,96131.0,96130.0,0.2080205]
[1739124711704,0.54890099,96131.0,96124.0,0.2080323]
[1739124711909,0.2080369,96123.0,96107.0,0.0325]
[1739124712110,0.08189844,96120.0,96107.0,0.0325]
[1739124712309,0.08189844,96120.0,96119.0,0.2080432]
[1739124712512,0.0647,96122.0,96121.0,0.2080399]
[1739124714011,0.0657,96122.0,96121.0,0.2150399]
[1739124715320,0.64637754,96122.0,96121.0,0.015]
[1739124717010,0.71565754,96122.0,96121.0,0.015]
[1739124720321,0.76625165,96122.0,96121.0,0.015]
[1739124724718,0.55821395,96122.0,96121.0,0.2230399]
[1739124724926,0.76625165,96122.0,96121.0,0.2230399]
[1739124725912,0.69697165,96122.0,96121.0,0.2230399]
[1739124727528,0.64637754,96122.0,96121.0,0.2230399]
[1739124730836,0.6355377,96122.0,96121.0,0.2230399]
[1739124732139,0.3628,96122.0,96121.0,0.2230399]
[1739124736246,0.002,96122.0,96121.0,0.2230399]
[1739124736448,0.05258843,96122.0,96121.0,0.2230399]
[1739124739542,0.05258843,96122.0,96121.0,0.5838399]
[1739124740951,0.002,96122.0,96121.0,0.5838399]
[1739124746341,0.002,96122.0,96121.0,0.2230399]
[1739124754950,0.0525891,96122.0,96121.0,0.2230399]
[1739124765557,0.002,96122.0,96121.0,0.2230399]
[1739124779474,0.002,96122.0,96121.0,0.41019511]
[1739124782274,0.002,96122.0,96121.0,0.2230399]
[1739124784974,0.2100372,96122.0,96121.0,0.015]
[1739124785469,0.26062537,96122.0,96121.0,0.015]
[1739124788581,0.26062537,96122.0,96121.0,0.2230394]
[1739124792677,0.05258817,96122.0,96121.0,0.2230394]
[1739124793878,0.002,96122.0,96121.0,0.2230394]
[1739124816595,0.002,96122.0,96121.0,0.5838394]
[1739124817798,0.002,96122.0,96121.0,0.2230394]
[1739124821095,0.002,96122.0,96121.0,0.015]
[1739124821306,0.2100372,96122.0,96121.0,0.015]
[1739124821998,0.26062387,96122.0,96121.0,0.015]
[1739124830717,0.98222387,96122.0,96121.0,0.015]
[1739124831314,0.9316372,96122.0,96121.0,0.015]
[1739124833513,0.9622372,96122.0,96121.0,0.015]
[1739124837411,0.9622372,96122.0,96102.0,0.18716773]
[1739124837412,0.2080689,96111.0,96110.0,0.2080628]
[1739124837713,0.2080718,96106.0,96102.0,0.39524623]
[1739124837919,0.2080718,96106.0,96104.0,0.2080756]
[1739124838412,0.2080718,96106.0,96105.0,0.20822991]
[1739124839126,0.2080718,96106.0,96105.0,0.00015601]
[1739124840318,0.2186056,96106.0,96105.0,0.00015601]
[1739124840921,0.2080718,96106.0,96105.0,0.00015601]
[1739124841426,0.2080718,96106.0,96105.0,0.20822991]
[1739124842611,0.0317,96110.0,96105.0,0.00015601]
[1739124842812,0.36152,96111.0,96105.0,0.00015601]
[1739124842813,0.3608,96111.0,96105.0,0.00015601]
[1739124843016,0.2080717,96106.0,96105.0,0.20822661]
[1739124844423,0.001,96110.0,96109.0,0.2080652]
[1739124844620,0.001,96106.0,96105.0,0.00015601]
[1739124846219,0.001,96106.0,96105.0,0.20822991]
[1739124846415,0.37202436,96111.0,96110.0,0.2080631]
[1739124846627,0.3608,96111.0,96110.0,0.2080631]
[1739124848121,0.3628,96111.0,96110.0,0.2080631]
[1739124848522,0.3648,96111.0,96110.0,0.2080631]
[1739124849325,0.004,96111.0,96110.0,0.2080631]
[1739124850940,0.004,96111.0,96110.0,0.2382631]
[1739124853022,0.004,96111.0,96110.0,0.24887953]
[1739124853523,0.004,96111.0,96105.0,0.00015601]
[1739124853728,0.5688717,96106.0,96105.0,0.00015601]
[1739124858632,0.57965815,96106.0,96105.0,0.00015601]
[1739124860940,0.21885815,96106.0,96105.0,0.00015601]
[1739124861245,0.57965815,96106.0,96105.0,0.00015601]
[1739124864534,0.64885815,96106.0,96105.0,0.00015601]
[1739124872543,0.64985815,96106.0,96105.0,0.00015601]
[1739124872747,0.65085815,96106.0,96105.0,0.00015601]
[1739124875555,0.70145903,96106.0,96105.0,0.00015601]
[1739124877847,0.70145903,96106.0,96105.0,1e-08]
[1739124883267,0.65085815,96106.0,96105.0,1e-08]
[1739124887653,0.68195815,96106.0,96105.0,1e-08]
[1739124887860,0.80115815,96106.0,96105.0,1e-08]
[1739124888649,0.80215815,96106.0,96105.0,1e-08]
[1739124888852,0.80315815,96106.0,96105.0,1e-08]
[1739124889153,1.16395815,96106.0,96105.0,1e-08]
[1739124890762,1.21456442,96106.0,96105.0,1e-08]
[1739124892753,1.00649272,96106.0,96086.0,0.0312]
[1739124892955,0.5689113,96087.0,96086.0,0.0312]
[1739124893156,0.6380713,96087.0,96086.0,0.0312]
[1739124894857,0.6380713,96087.0,96086.0,0.0372]
[1739124895261,0.5689113,96087.0,96086.0,0.0372]
[1739124895450,0.5699113,96087.0,96086.0,0.0372]
[1739124895854,0.5699113,96087.0,96086.0,0.0382]
[1739124896364,0.58044607,96087.0,96086.0,0.0382]
[1739124897451,0.21964607,96087.0,96086.0,0.0382]
[1739124897662,0.63105234,96087.0,96086.0,0.0372]
[1739124897963,0.63205234,96087.0,96086.0,0.0382]
[1739124899552,0.63105234,96087.0,96086.0,0.2403134]